bitfinex/quotes_ETHUSD_20240811
["timestamp","ask_amount","ask_price","bid_price","bid_amount"]
[1723355013973,3.63877,2656.8,2656.4,2.4561]
[1723355016983,1.004,2656.8,2656.4,2.4561]
[1723355017188,6.63875,2656.8,2656.5,0.5864]
[1723355018392,1.004,2656.8,2656.6,2.4232]
[1723355018592,2.63466,2656.9,2656.6,2.4232]
[1723355018921,3.63859,2657.0,2656.6,2.4232]
[1723355018922,2.63476,2656.8,2656.6,2.4232]
[1723355022414,2.4895,2657.9,2656.7,2.4232]
[1723355022725,2.63418,2657.4,2656.9,2.4232]
[1723355022953,2.63415,2657.4,2656.9,2.4232]
[1723355023132,2.63415,2657.4,2657.0,0.51331368]
[1723355024953,2.63415,2657.4,2657.1,2.4232]
[1723355025154,3.1281296,2657.8,2657.1,2.49846591]
[1723355025452,2.63392,2657.7,2657.2,2.4232]
[1723355025844,3.1281296,2657.8,2657.2,2.4232]
[1723355025845,2.63396,2657.6,2657.2,2.4232]
[1723355026324,2.63392,2657.7,2657.2,2.4232]
[1723355029444,5.26786,2657.7,2657.2,2.4232]
[1723355029990,2.63392,2657.7,2657.2,2.4232]
[1723355031187,5.26785,2657.7,2657.2,2.98782196]
[1723355031345,2.63396,2657.6,2657.2,2.98782196]
[1723355034190,2.63424,2657.4,2656.8,2.4232]
[1723355034368,2.63442,2657.2,2656.8,2.4232]
[1723355036590,2.63448,2657.1,2656.8,2.4232]
[1723355036962,2.63442,2657.2,2656.8,2.4232]
[1723355037785,2.63442,2657.2,2656.8,2.929011]
[1723355038480,2.63442,2657.2,2656.8,3.00428182]
[1723355038860,2.63442,2657.2,2656.8,2.929011]
[1723355039695,2.63445,2657.1,2656.8,2.929011]
[1723355039862,2.63457,2657.0,2656.8,2.4232]
[1723355040391,5.2692,2657.0,2656.5,2.3396]
[1723355040779,2.63457,2657.0,2656.5,2.3396]
[1723355040983,2.63457,2657.0,2656.5,2.91234677]
[1723355042097,2.63457,2657.0,2656.5,5.54737677]
[1723355043099,2.63457,2657.0,2656.5,2.91234677]
[1723355044080,2.63437,2657.2,2656.5,5.54732677]
[1723355044276,2.63437,2657.2,2656.6,0.91863968]
[1723355045009,2.63447,2657.1,2656.6,0.91863968]
[1723355045362,1.004,2657.3,2656.7,2.63476]
[1723355045570,2.63422,2657.4,2656.8,0.07527108]
[1723355045887,2.63422,2657.4,2656.9,2.3396]
[1723355048405,2.63426,2657.3,2656.9,2.3396]
[1723355050293,6.27245,2657.4,2656.9,2.3396]
[1723355050973,3.63822,2657.4,2656.9,2.3396]
[1723355051170,3.63801,2657.6,2657.1,2.3396]
[1723355051405,0.1281296,2657.8,2657.1,2.3396]
[1723355051573,0.1281296,2657.8,2657.3,2.63419]
[1723355051777,0.1281296,2657.8,2657.5,2.3396]
[1723355051975,2.7618896,2657.8,2657.5,2.3396]
[1723355052486,0.1281296,2657.8,2657.5,2.3396]
[1723355054204,0.1281296,2657.8,2657.5,4.97365]
[1723355054909,0.1281296,2657.8,2657.7,2.3396]
[1723355055096,0.1281296,2657.8,2657.7,3.10787657]
[1723355058516,0.1281296,2657.8,2657.7,2.3396]
[1723355063471,0.1281296,2657.8,2657.7,4.97345]
[1723355063671,0.1281296,2657.8,2657.7,2.70909448]
[1723355063915,0.1281296,2657.8,2657.7,5.10329448]
[1723355064123,0.1281296,2657.8,2657.7,8.28714448]
[1723355064315,0.1281296,2657.8,2657.7,9.21625893]
[1723355064612,0.1281296,2657.8,2657.7,10.22025893]
[1723355065213,0.1281296,2657.8,2657.7,10.14501445]
[1723355066117,0.1281296,2657.8,2657.7,12.77886445]
[1723355066274,0.1281296,2657.8,2657.7,15.77886445]
[1723355068424,0.1281296,2657.8,2657.7,12.14101445]
[1723355068599,0.1281296,2657.8,2657.7,12.59501445]
[1723355070424,0.1281296,2657.8,2657.7,13.14501445]
[1723355071736,0.1281296,2657.8,2657.7,9.14101445]
[1723355072231,0.1281296,2657.8,2657.7,6.50716445]
[1723355074825,0.1281296,2657.8,2657.7,2.3942]
[1723355075063,0.1281296,2657.8,2657.4,0.32594424]
[1723355075064,0.1281296,2657.8,2657.4,7.66243]
[1723355075267,0.1281296,2657.8,2657.4,5.02827]
[1723355075560,0.1281296,2657.8,2657.5,2.63404]
[1723355082357,0.1281296,2657.8,2657.5,5.26803]
[1723355082861,0.1281296,2657.8,2657.5,2.63399]
[1723355083832,0.1281296,2657.8,2657.5,5.26798]
[1723355084063,0.1281296,2657.8,2657.5,2.63399]
[1723355084849,0.1281296,2657.8,2657.4,2.3942]
[1723355086067,0.1281296,2657.8,2657.4,5.02833]
[1723355087851,0.1281296,2657.8,2657.3,2.63417]
[1723355088178,0.1281296,2657.8,2657.3,5.26836]
[1723355088382,0.1281296,2657.8,2657.4,2.63413]
[1723355091391,0.1281296,2657.8,2657.5,2.63403]
[1723355094275,0.1281296,2657.8,2657.3,2.63418]
[1723355094475,0.1281296,2657.8,2657.3,3.224401]
[1723355095403,0.1281296,2657.8,2657.5,2.63404]
[1723355097523,0.1281296,2657.8,2657.6,2.63388]
[1723355097729,0.1281296,2657.8,2657.6,2.90479341]
[1723355097902,0.1281296,2657.8,2657.6,2.63388]
[1723355098099,0.1281296,2657.8,2657.6,5.09318]
[1723355098301,0.1281296,2657.8,2657.7,2.63385]
[1723355100491,0.1281296,2657.8,2657.7,5.89294683]
[1723355104235,0.1281296,2657.8,2657.7,8.35224683]
[1723355104532,0.1281296,2657.8,2657.7,11.92172151]
[1723355105669,0.1281296,2657.8,2657.7,9.21262468]
[1723355106175,0.1281296,2657.8,2657.7,14.84647468]
[1723355106951,0.1281296,2657.8,2657.7,17.48032468]
[1723355107149,0.1281296,2657.8,2657.7,14.84647468]
[1723355107473,0.1281296,2657.8,2657.7,17.48032468]
[1723355107774,0.0781296,2657.8,2657.7,17.48032468]
[1723355107982,0.0781296,2657.8,2657.7,14.84647468]
[1723355109001,0.0781296,2657.8,2657.7,15.85047468]
[1723355109595,0.0781296,2657.8,2657.7,14.84647468]
[1723355109759,0.0781296,2657.8,2657.7,15.85047468]
[1723355112810,0.005,2658.5,2658.4,7.89948]
[1723355113085,0.005,2658.7,2658.6,14.37244]
[1723355113290,3.0,2659.9,2658.9,10.35728]
[1723355113463,3.0,2659.9,2658.9,11.36128]
[1723355113794,3.0,2659.9,2658.9,14.91128]
[1723355113992,3.0,2659.9,2658.9,15.84690468]
[1723355114296,3.0,2659.9,2658.9,18.47956468]
[1723355115089,3.0,2659.9,2658.9,18.85686468]
[1723355115795,3.0,2659.9,2658.9,19.87656468]
[1723355116568,3.0,2659.9,2658.9,19.97656468]
[1723355117313,3.0,2659.9,2658.9,17.24390468]
[1723355117604,2.3367,2659.7,2658.9,16.69390468]
[1723355118999,2.3367,2659.7,2658.9,17.24390468]
[1723355119501,2.3367,2659.7,2658.9,14.61124468]
[1723355121305,4.96858,2659.7,2658.9,11.60194468]
[1723355122402,2.3367,2659.7,2658.9,11.60194468]
[1723355122699,2.3367,2659.7,2658.9,12.15194468]
[1723355123104,4.96857,2659.7,2658.9,12.15194468]
[1723355123617,4.96857,2659.7,2658.9,9.75094468]
[1723355123829,4.96857,2659.7,2658.5,5.03406]
[1723355123830,2.3727,2659.2,2658.7,2.63279]
[1723355124132,2.3727,2659.2,2658.8,2.63274]
[1723355125192,2.3727,2659.2,2658.9,2.63266]
[1723355125485,2.3727,2659.2,2658.9,5.81532]
[1723355127290,2.3727,2659.2,2658.9,3.18266]
[1723355129287,2.3727,2659.2,2658.9,3.764202]
[1723355130629,2.3727,2659.4,2658.9,3.764202]
[1723355131200,2.3727,2658.9,2658.6,2.63294]
[1723355132408,2.3727,2658.9,2658.4,2.63309]
[1723355132794,2.3727,2658.9,2658.1,9.751]
[1723355132795,2.3727,2658.9,2658.6,2.6329]
[1723355133233,2.3727,2659.2,2658.9,2.63266]
[1723355133434,2.3727,2659.2,2658.9,0.55]
[1723355133726,2.3727,2659.2,2658.6,3.159492]
[1723355134032,2.3727,2658.9,2658.6,2.63289]
[1723355134393,5.63192,2659.7,2658.8,2.63276]
[1723355134394,2.3727,2659.1,2658.8,2.63276]
[1723355134629,2.3727,2659.4,2658.9,2.63266]
[1723355134995,2.3727,2659.4,2658.9,5.26532]
[1723355135195,2.3727,2659.4,2658.9,5.791852]
[1723355135391,2.3727,2659.4,2658.9,3.159192]
[1723355135623,5.00488,2659.4,2658.9,3.18266]
[1723355135820,2.63218,2659.4,2658.9,0.55]
[1723355136035,2.3777,2659.0,2658.8,3.18273]
[1723355136247,2.3777,2659.0,2658.9,2.63266]
[1723355136412,2.3777,2659.0,2658.9,3.18266]
[1723355137217,0.005,2659.0,2658.9,3.18266]
[1723355137426,0.005,2659.0,2658.9,3.764207]
[1723355138235,0.005,2659.0,2658.9,3.18266]
[1723355139527,0.005,2659.0,2658.9,0.55]
[1723355139707,0.005,2659.0,2658.8,3.18273]
[1723355140102,0.005,2659.0,2658.9,2.63266]
[1723355140302,0.005,2659.0,2658.9,3.18266]
[1723355142648,0.005,2659.0,2658.7,2.63286]
[1723355143400,2.2516,2658.9,2658.5,2.63306]
[1723355143603,2.2516,2658.9,2658.4,12.61621]
[1723355143804,2.2516,2658.9,2658.5,0.55]
[1723355144140,2.2516,2658.9,2658.4,9.9831]
[1723355144643,2.2516,2658.9,2658.4,7.35]
[1723355144945,4.88435,2658.9,2658.4,7.35]
[1723355145503,4.88435,2658.9,2658.4,9.98315]
[1723355145941,2.2516,2658.9,2658.4,12.61624]
[1723355146158,2.2516,2658.9,2658.4,9.98309]
[1723355147917,4.88427,2658.9,2658.2,5.26658]
[1723355148129,4.88427,2658.9,2658.3,0.55]
[1723355148947,4.88427,2658.9,2658.3,3.18317]
[1723355149253,2.2516,2658.9,2658.4,2.63313]
[1723355149767,4.88428,2658.9,2658.3,0.55]
[1723355150047,4.88428,2658.9,2658.3,3.18324]
[1723355150247,7.51702,2658.9,2658.3,0.55]
[1723355150425,7.51702,2658.9,2658.2,2.63328]
[1723355150627,2.63281,2658.8,2658.2,2.63328]
[1723355151308,2.2516,2658.9,2658.5,2.63305]
[1723355151506,2.2516,2658.9,2658.6,3.127965]
[1723355151750,2.2516,2658.9,2658.5,2.70821083]
[1723355152755,2.2516,2658.9,2658.5,2.63299]
[1723355153343,2.63278,2658.8,2658.1,2.63338]
[1723355153526,2.2516,2658.9,2658.3,2.63317]
[1723355153725,2.2516,2658.9,2658.3,2.70839652]
[1723355154344,2.2516,2658.9,2658.4,2.63314]
[1723355154654,2.2864,2658.8,2658.3,2.63317]
[1723355154907,4.91917,2658.8,2658.3,2.63317]
[1723355155043,4.91917,2658.8,2658.2,1.230138]
[1723355155249,4.91917,2658.8,2658.2,3.863408]
[1723355155416,4.91917,2658.8,2658.3,0.46047432]
[1723355156411,4.91917,2658.8,2658.1,2.63339]
[1723355156412,2.2864,2658.6,2658.1,2.63339]
[1723355158052,4.91937,2658.6,2658.0,2.63353]
[1723355158411,4.91937,2658.6,2658.0,3.392041]
[1723355158611,2.4595,2658.5,2658.0,3.392041]
[1723355159756,5.09265,2658.5,2657.8,2.63373]
[1723355159924,2.63316,2658.4,2657.8,2.63373]
[1723355160246,2.63316,2658.4,2657.8,2.63369]
[1723355160553,2.4595,2658.3,2657.8,2.63375]
[1723355160864,5.09277,2658.3,2657.8,2.63375]
[1723355161847,2.4595,2658.3,2657.8,2.63375]
[1723355162053,2.4595,2658.3,2658.1,2.63345]
[1723355162213,5.09242,2658.7,2658.1,2.63345]
[1723355162412,2.4595,2658.7,2658.1,2.63345]
[1723355162617,2.4595,2658.7,2658.2,2.63335]
[1723355162818,2.968731,2658.7,2658.3,2.63322]
[1723355163016,2.4595,2658.7,2658.3,2.63322]
[1723355163552,2.4595,2658.7,2658.3,2.6332]
[1723355163715,2.4595,2658.7,2658.4,2.63307]
[1723355163919,2.4595,2658.9,2658.1,0.07522898]
[1723355164215,2.4595,2658.9,2658.3,2.63319]
[1723355165054,2.4595,2658.9,2658.4,2.63308]
[1723355165759,5.09219,2658.9,2658.3,2.63319]
[1723355166072,0.772977,2658.8,2658.3,2.63319]
[1723355166974,5.09217,2658.9,2658.3,2.63319]
[1723355167293,5.09217,2658.9,2658.4,2.63315]
[1723355167656,5.09217,2658.9,2658.3,2.63319]
[1723355168754,2.63288,2658.7,2658.1,2.63338]
[1723355169207,2.969217,2658.8,2658.1,2.63338]
[1723355169357,2.4595,2658.8,2658.4,2.63314]
[1723355170055,2.4595,2658.8,2658.4,2.63309]
[1723355170990,2.4595,2658.8,2658.5,2.63304]
[1723355171855,2.4645,2659.0,2658.6,2.63295]
[1723355172492,2.4645,2659.0,2658.5,0.0752262]
[1723355172704,2.4645,2659.0,2658.4,2.63307]
[1723355172885,2.63271,2658.9,2658.3,2.63317]
[1723355173304,2.974197,2659.0,2658.4,2.63314]
[1723355173602,2.63266,2658.9,2658.2,5.43541]
[1723355173803,2.63266,2658.9,2658.2,3.18329]
[1723355174002,2.4595,2658.8,2658.2,3.18329]
[1723355174206,2.4595,2658.8,2658.3,2.63325]
[1723355175203,2.4595,2658.6,2658.1,2.63338]
[1723355175382,2.4595,2658.6,2658.3,2.63325]
[1723355175566,2.63759,2659.0,2658.3,2.63325]
[1723355175911,2.4595,2658.9,2658.4,2.63314]
[1723355176403,2.4595,2658.9,2658.3,2.63325]
[1723355176603,2.4595,2658.9,2658.3,5.26644]
[1723355177010,2.4595,2658.9,2658.3,2.63319]
[1723355177197,5.09217,2658.9,2658.3,2.63319]
[1723355177371,2.4595,2658.9,2658.3,5.26638]
[1723355177701,5.09218,2658.9,2658.3,2.63319]
[1723355178995,5.865157,2658.9,2658.3,2.63319]
[1723355179404,2.4595,2658.9,2658.2,2.2521]
[1723355179701,2.4595,2658.9,2658.5,2.63299]
[1723355179903,0.005,2659.0,2658.9,2.63266]
[1723355180121,0.005,2659.0,2658.9,6.66474078]
[1723355181189,0.005,2659.0,2658.9,11.77410078]
[1723355184134,0.005,2659.0,2658.9,11.698892]
[1723355184710,0.005,2659.0,2658.9,17.331552]
[1723355186743,0.005,2659.0,2658.9,17.708852]
[1723355186944,0.005,2659.0,2658.9,17.477192]
[1723355187144,0.005,2659.0,2658.9,17.099892]
[1723355187936,0.005,2659.0,2658.9,19.732552]
[1723355188950,0.005,2659.0,2658.9,20.109352]
[1723355192538,1e-05,2659.0,2658.9,22.742012]
[1723355192737,0.5,2659.6,2659.5,10.37291]
[1723355193034,0.5,2659.6,2659.5,16.55498]
[1723355193348,0.5,2659.6,2659.5,13.92291]
[1723355195460,0.5,2659.6,2659.5,11.44621]
[1723355196468,0.5,2659.6,2659.5,13.92291]
[1723355196642,0.5,2659.6,2659.5,12.220422]
[1723355197743,3.0,2659.9,2659.8,5.26354]
[1723355198059,3.0,2659.9,2659.8,8.44531]
[1723355202346,3.0,2659.9,2659.8,11.07708]
[1723355202546,3.0,2659.9,2659.8,11.99348032]
[1723355202750,3.0,2659.9,2659.8,14.41888032]
[1723355203353,3.0,2659.9,2659.8,11.78711032]
[1723355203695,3.0,2659.9,2659.8,9.36171032]
[1723355205498,3.0,2659.9,2659.8,11.78711032]
[1723355206002,3.0,2659.9,2659.8,14.41888032]
[1723355207802,3.0,2659.9,2659.8,17.41888032]
[1723355208515,1.12023,2659.9,2659.8,20.05065032]
[1723355208672,1.12023,2659.9,2659.8,22.45165032]
[1723355208872,1.12023,2659.9,2659.8,19.81988032]
[1723355209620,1.12023,2659.9,2659.8,17.18811032]
[1723355210278,1.12023,2659.9,2659.8,19.81988032]
[1723355210604,1.12023,2659.9,2659.8,17.18811032]
[1723355214401,1.12023,2659.9,2659.8,12.36171032]
[1723355214789,1.12023,2659.9,2659.8,9.72994032]
[1723355215309,1.12023,2659.9,2659.8,9.17994032]
[1723355216186,1.12023,2659.9,2659.8,5.26354]
[1723355216710,1.12023,2659.9,2659.8,5.81354]
[1723355218627,1.12023,2659.9,2659.8,3.18177]
[1723355219976,1.12023,2659.9,2659.8,5.81354]
[1723355221015,1.12023,2659.9,2659.8,3.18177]
[1723355221820,1.12023,2659.9,2659.8,5.81354]
[1723355224226,1.12023,2659.9,2659.8,6.89151567]
[1723355231836,1.12023,2659.9,2659.8,7.89151567]
[1723355241163,1.12023,2659.9,2659.8,6.81354]
[1723355249382,1.12023,2659.9,2659.8,9.18154]
[1723355249569,1.12023,2659.9,2659.8,6.81354]
[1723355253651,1.12023,2659.9,2659.8,5.81354]
[1723355253849,1.12023,2659.9,2659.8,6.8886173]
[1723355254187,1.12023,2659.9,2659.8,8.14249577]
[1723355255364,1.12023,2659.9,2659.8,8.06741847]
[1723355256310,3.43103,2659.9,2659.7,0.65034933]
[1723355256458,3.43103,2659.9,2659.6,2.63195]
[1723355256659,3.43103,2659.9,2659.6,2.63191]
[1723355257667,2.3108,2659.8,2659.5,1.0]
[1723355257893,2.3108,2659.8,2659.6,0.55]
[1723355258251,2.3108,2659.8,2659.6,3.18194]
[1723355258456,2.3108,2659.8,2659.7,2.63187]
[1723355258667,2.3108,2659.8,2659.7,3.18187]
[1723355258866,2.3108,2659.8,2659.7,4.18187]
[1723355260172,2.3108,2659.8,2659.7,1.0]
[1723355260571,2.3108,2659.8,2659.5,2.63206]
[1723355260779,2.3108,2659.8,2659.3,9.9822]
[1723355260780,2.653903,2659.8,2659.3,9.9822]
[1723355260974,2.653903,2659.8,2659.4,0.55]
[1723355261589,2.653903,2659.8,2659.4,3.18215]
[1723355261793,2.3278,2659.6,2659.1,2.6324]
[1723355263575,2.3278,2659.6,2659.2,0.55]
[1723355263963,2.3278,2659.6,2659.1,2.6324]
[1723355264995,2.3278,2659.4,2659.0,1.0]
[1723355265210,2.3278,2659.4,2658.9,3.6875]
[1723355265502,2.3278,2659.4,2659.0,0.55]
[1723355265968,4.96001,2659.4,2659.0,0.55]
[1723355266166,2.63221,2659.4,2659.0,0.55]
[1723355266467,2.3278,2659.2,2659.0,0.55]
[1723355267108,2.3278,2659.2,2658.9,3.6875]
[1723355268401,2.3278,2659.2,2658.9,6.32016]
[1723355269293,2.3278,2659.2,2658.9,3.6875]
[1723355272073,2.3278,2659.1,2658.9,3.6875]
[1723355272673,2.85547726,2659.1,2658.9,3.6875]
[1723355273508,4.96036,2659.0,2658.9,3.6875]
[1723355275245,2.3278,2659.0,2658.9,3.6875]
[1723355275851,2.3278,2659.5,2658.9,3.6875]
[1723355276014,3.123782,2659.5,2659.0,2.6325]
[1723355276220,3.123782,2659.5,2659.0,1.0]
[1723355276537,2.3278,2659.5,2659.3,2.63226]
[1723355276713,2.3278,2659.8,2659.3,2.63226]
[1723355277098,2.3278,2659.8,2659.2,1.0]
[1723355277302,2.63188,2659.7,2659.3,0.55]
[1723355277502,1.074803,2659.7,2659.2,3.63229]
[1723355277937,1.074803,2659.7,2659.2,1.0]
[1723355278187,2.9722603,2659.6,2659.1,1.0]
[1723355278349,2.9722603,2659.6,2659.1,3.63246]
[1723355278760,0.3402603,2659.6,2659.1,3.63246]
[1723355279872,1.074803,2659.7,2659.2,2.63227]
[1723355280939,1.074803,2659.7,2659.1,3.63246]
[1723355281548,3.706683,2659.7,2659.1,3.63246]
[1723355281850,0.8666273,2659.6,2659.1,3.63246]
[1723355282452,0.8666273,2659.6,2659.1,1.0]
[1723355282453,3.4985973,2659.6,2659.1,1.0]
[1723355282662,0.8666273,2659.6,2659.1,3.63245]
[1723355283288,0.8666273,2659.6,2659.1,6.26484]
[1723355283446,2.3278,2659.8,2659.3,2.63224]
[1723355286787,8.42023,2659.9,2659.3,3.63224]
[1723355287116,8.42023,2659.9,2659.5,2.63205]
[1723355287424,1.12023,2659.9,2659.5,2.63205]
[1723355293770,1.12023,2659.9,2659.4,2.63216]
[1723355294425,1.12023,2659.9,2659.5,2.63207]
[1723355295560,1.12023,2659.9,2659.6,2.63196]
[1723355295759,1.12023,2659.9,2659.5,4.89507]
[1723355295968,1.12023,2659.9,2659.7,2.63186]
[1723355297365,1.12023,2659.9,2659.8,2.63177]
[1723355297570,1.12023,2659.9,2659.8,3.18177]
[1723355297733,1.12023,2659.9,2659.8,5.81354]
[1723355300233,1.12023,2659.9,2659.8,5.88872592]
[1723355300458,1.12023,2659.9,2659.8,6.57759851]
[1723355300863,1.12023,2659.9,2659.8,8.98529851]
[1723355304667,1.12023,2659.9,2659.8,17.24883851]
[1723355305162,1.12023,2659.9,2659.8,17.62563851]
[1723355307509,0.005,2660.1,2660.0,14.31078]
[1723355307697,1e-05,2660.1,2660.0,20.49235]
[1723355307920,0.1281296,2660.5,2660.4,12.93242]
[1723355308119,0.1281296,2660.5,2660.4,17.85922]
[1723355308346,0.1281296,2660.5,2660.4,18.54809259]
[1723355309229,9.6e-06,2660.5,2660.4,21.17927259]
[1723355311736,9.6e-06,2660.5,2660.4,22.57727259]
[1723355316907,7.3,2662.5,2661.9,2.4077]
[1723355317065,2.4933,2662.7,2662.2,2.62934]
[1723355317273,2.6292,2662.5,2661.8,5.25947]
[1723355317578,2.4933,2662.3,2661.6,2.62992]
[1723355317893,2.4933,2662.1,2661.6,2.62992]
[1723355318105,2.4933,2662.1,2661.7,0.55]
[1723355318421,2.4933,2662.1,2661.7,3.17986]
[1723355318712,2.4933,2662.1,2661.7,3.17983]
[1723355318928,2.4933,2662.1,2661.6,2.62999]
[1723355319243,0.24933,2662.0,2661.5,2.63005]
[1723355319519,2.2664,2662.6,2662.0,5.25913]
[1723355319680,2.2664,2662.6,2662.2,2.62938]
[1723355319880,0.22664,2662.5,2662.2,2.62938]
[1723355320080,2.2664,2662.6,2662.3,0.07511535]
[1723355320520,2.2664,2662.6,2662.4,0.55]
[1723355320677,2.2664,2662.6,2662.3,0.55]
[1723355320878,2.2664,2662.6,2662.3,0.62511523]
[1723355321182,2.49304,2662.6,2662.3,0.62511523]
[1723355321916,2.49304,2662.6,2662.3,0.55]
[1723355322280,2.49304,2662.6,2662.3,0.62511657]
[1723355322510,2.49304,2662.6,2662.4,2.62912]
[1723355322831,2.49304,2662.6,2662.5,0.55]
[1723355322979,2.49304,2662.6,2662.3,3.17922]
[1723355323179,0.249304,2662.5,2662.3,3.17929]
[1723355323714,0.249304,2662.5,2662.3,0.55]
[1723355323919,2.2664,2662.4,2661.9,2.62967]
[1723355324598,2.2664,2662.4,2661.7,2.62986]
[1723355325121,2.62931,2662.3,2661.7,2.62986]
[1723355325337,2.2664,2662.2,2661.7,2.62986]
[1723355325923,2.2664,2662.2,2661.5,2.63001]
[1723355325924,2.6295,2662.1,2661.5,2.63001]
[1723355326083,3.382009,2662.1,2661.5,2.63001]
[1723355326836,4.89601,2662.0,2661.3,2.63021]
[1723355327042,2.2664,2662.0,2661.4,2.63012]
[1723355327205,2.2664,2662.0,2661.5,2.63001]
[1723355327389,0.48959,2661.9,2661.5,2.63001]
[1723355327886,2.2664,2661.6,2661.3,2.63028]
[1723355328198,2.2664,2661.6,2661.1,5.26083]
[1723355328820,2.2664,2661.6,2661.1,2.63041]
[1723355329615,2.2664,2661.6,2661.2,0.55]
[1723355329831,0.22664,2661.5,2661.2,0.55]
[1723355331807,2.2664,2661.4,2660.5,5.26205]
[1723355331985,2.63037,2661.3,2660.3,2.3686]
[1723355332191,0.489677,2661.2,2660.7,2.6308]
[1723355332795,0.489677,2661.2,2660.7,5.26161]
[1723355333014,0.489677,2661.2,2660.8,2.63077]
[1723355333192,0.489677,2661.2,2660.7,2.6308]
[1723355333397,0.3120047,2661.1,2660.7,2.6308]
[1723355334243,0.489677,2661.2,2660.7,2.6308]
[1723355335034,0.489677,2661.2,2660.8,2.63073]
[1723355335241,2.2664,2661.4,2660.8,2.63073]
[1723355335537,4.8966,2661.4,2660.8,2.63073]
[1723355336048,4.8966,2661.4,2660.7,2.6308]
[1723355336049,2.2664,2661.2,2660.0,0.0009756]
[1723355336249,2.2664,2660.7,2660.2,2.63131]
[1723355337347,4.89734,2660.7,2660.1,2.63145]
[1723355337554,2.63105,2660.6,2660.0,2.63153]
[1723355337839,4.89749,2660.5,2659.8,2.6317]
[1723355338019,4.89749,2660.5,2659.8,2.63169]
[1723355338335,0.752854,2660.4,2659.8,2.63169]
[1723355338510,2.4067,2660.3,2659.8,2.63169]
[1723355338915,2.4067,2660.3,2660.0,2.63154]
[1723355339421,2.4067,2660.3,2659.8,2.63169]
[1723355339929,2.4067,2660.3,2659.6,2.63285575]
[1723355340218,2.910489,2660.3,2659.8,2.63169]
[1723355340633,2.4067,2660.3,2660.0,2.63156]
[1723355341703,7.3,2660.6,2660.3,2.63122]
[1723355341907,2.63062,2661.0,2659.9,0.07518889]
[1723355341908,7.3,2661.0,2660.5,2.63101]
[1723355342105,9.7067,2661.0,2660.5,2.63101]
[1723355343003,9.7067,2661.0,2660.7,2.63087]
[1723355343232,7.3,2661.0,2660.7,2.63087]
[1723355343438,7.3,2661.0,2660.7,2.6308]
[1723355343809,2.4067,2661.3,2661.0,2.63055]
[1723355344007,2.4067,2661.7,2661.2,2.63039]
[1723355344233,0.503653,2661.6,2661.2,2.63039]
[1723355345157,0.503653,2661.6,2661.0,2.63052]
[1723355345736,0.503653,2661.6,2661.1,2.63048]
[1723355346040,0.503653,2661.6,2661.2,2.63038]
[1723355347313,0.503653,2661.6,2661.1,2.63047]
[1723355348144,0.503653,2661.6,2661.0,2.63058]
[1723355348320,0.5540253,2661.5,2661.0,2.63058]
[1723355349226,3.1841853,2661.5,2660.8,2.63075]
[1723355349445,5.03697,2661.4,2660.8,2.63075]
[1723355349831,2.63029,2661.3,2660.8,2.63075]
[1723355350035,2.63029,2661.3,2660.6,5.26187]
[1723355350342,2.63029,2661.3,2660.7,0.55]
[1723355350748,2.63029,2661.3,2660.7,3.1808]
[1723355350959,2.63029,2661.3,2660.8,2.63077]
[1723355351331,2.4067,2661.4,2660.9,2.63068]
[1723355351530,2.4067,2661.4,2661.0,3.18049]
[1723355351977,2.4067,2661.7,2661.1,2.63047]
[1723355352128,2.4067,2661.7,2661.3,2.63019]
[1723355352534,2.4067,2661.7,2661.3,5.2604]
[1723355352760,2.62974,2661.9,2661.5,2.3765]
[1723355353038,2.62938,2662.3,2661.7,2.62989]
[1723355353335,2.892348,2662.2,2661.5,7.63654]
[1723355353535,0.262938,2662.2,2661.6,2.62996]
[1723355353974,2.892338,2662.2,2661.6,2.62996]
[1723355354274,0.262938,2662.2,2661.7,2.62988]
[1723355355186,5.03583,2662.5,2661.8,2.62975]
[1723355355348,3.0,2662.4,2661.8,2.62975]
[1723355355672,7.66501,2662.5,2661.8,2.62975]
[1723355355831,2.62921,2662.4,2661.8,2.62975]
[1723355356031,4.425714,2662.4,2661.7,2.62988]
[1723355356232,2.62931,2662.3,2661.7,2.62988]
[1723355356683,1.796504,2662.4,2661.9,2.62969]
[1723355356831,5.03582,2662.5,2661.9,2.62962]
[1723355357031,1.533582,2662.4,2661.9,2.62962]
[1723355357381,7.3,2662.6,2662.1,2.62941]
[1723355358573,2.62917,2662.5,2661.9,2.62969]
[1723355358790,2.62917,2662.5,2662.0,0.55]
[1723355358938,3.622087,2662.5,2662.0,0.55]
[1723355359539,3.622087,2662.5,2661.9,2.62969]
[1723355359740,2.4312,2662.4,2661.2,4.6694]
[1723355359970,2.4312,2662.4,2661.8,2.62979]
[1723355360276,0.6053257,2662.3,2661.8,2.62979]
[1723355360856,3.2346257,2662.3,2661.8,2.62979]
[1723355361490,5.8640057,2662.3,2661.6,2.62992]
[1723355361670,3.2346257,2662.3,2661.7,0.55]
[1723355362276,2.4312,2662.4,2661.9,2.62967]
[1723355362459,7.3,2662.6,2662.1,2.62942]
[1723355362660,9.92907,2662.6,2662.0,0.55]
[1723355363571,2.62918,2662.5,2662.0,0.55]
[1723355364092,2.62918,2662.5,2661.7,2.62983]
[1723355364093,5.06042,2662.4,2661.7,2.62983]
[1723355364257,2.62932,2662.3,2661.8,0.55]
[1723355364462,3.5481833,2662.3,2661.8,0.55]
[1723355366075,3.5481833,2662.3,2661.8,3.17979]
[1723355366403,7.3,2662.6,2662.1,2.62941]
[1723355366707,7.3,2662.6,2662.2,2.6294]